Workbook

Sheet MSU
B1: Keijo Koivisto | E1: 24.4.1984 Ulvila
B2: SUPERPESIS | E2: Runkosarja | I2: Kärkilyönnit (KL), pesänvälit | P2: Runkosarja TOP-30 | U2: Ylempi loppusarja | AB2: Ylempi loppusarja TOP-10 | AG2: Play off, voitot, voittoprosentti | AL2: Arvo-ottelut | AO2: Mitalit
B3: Vuosi | C3: Sija | D3: Seura | E3: OTT | F3: KUN | G3: LÖI | H3: TOI | I3: KL | J3: 0 > 1 | K3: 1 > 2 | L3: 2 > 3 | M3: 3 > k | N3: KL-% | P3: LÖI | Q3: TOI | R3: L+T | S3: KL | U3: OTT | V3: KUN | W3: LÖI | X3: TOI | Y3: KL | Z3: KL-% | AB3: LÖI | AC3: TOI | AD3: L+T | AE3: KL | AG3: Puolivälierät | AH3: Välierät | AI3: Pronssi | AJ3: Finaalit | AL3: IL | AM3: LL | AN3: hSM | AO3: K | AP3: H | AQ3: P
B4: 2002 | C4: 6. | D4: UPV | E4: 1 | F4: 0 | G4: 0 | H4: 0 | I4: 0 | J4: 0 | K4: 0 | L4: 0 | M4: 0 | N4: 0.0 % | U4: 2 | V4: 0 | W4: 0 | X4: 0 | Y4: 1 | Z4: 25.0 % | AG4: 0-3 Tahko
B5: 2003 | C5: 15. | D5: KöLa | F5: ykköspesis
B6: 2004 | C6: 11. | D6: UPV | F6: ykköspesis
B7: 2005 | C7: 5. | D7: LaJy | F7: suomensarja
B8: 2005 | C8: 6. | D8: UPV | F8: ykköspesis
B9: 2006
B10: 2007 | C10: 6. | D10: UPV 2 | F10: suomensarja
B11: 2008 | C11: 6. | D11: UPV 2 | F11: suomensarja
B12: ****
B13: 2014 | C13: 10. | D13: PomPy | F13: suomensarja
B14: 2015 | C14: 9. | D14: PomPy | F14: suomensarja
B15: 2016 | C15: 9. | D15: PomPy | F15: suomensarja
B16: 2017
B17: 2018
B18: 2019
B19: 2020 | C19: 7. | D19: PomPy | F19: suomensarja
B20: 2021 | C20: 8. | D20: PomPy | F20: suomensarja
B21: 2022 | C21: 4. | D21: PomPy | F21: suomensarja
B22: 2023 | C22: 6. | D22: UPV | F22: suomensarja
B23: Yhteensä | E23: 1 | F23: 0 | G23: 0 | H23: 0 | I23: 0 | J23: 0 | K23: 0 | L23: 0 | M23: 0 | N23: 0.0 % | O23: =SUM(O9:O22) -> 0 | P23: 0-0-0 | Q23: 0-0-0 | R23: 0-0-0 | S23: 0-0-0 | U23: =SUM(U4:U22) -> 2 | V23: =SUM(V4:V22) -> 0 | W23: =SUM(W4:W22) -> 0 | X23: =SUM(X4:X22) -> 0 | Y23: =SUM(Y4:Y22) -> 1 | Z23: =PRODUCT(N29) -> 25.0 % | AA23: =SUM(AA4:AA22) -> 0.0 % | AB23: 0-0-0 | AC23: 0-0-0 | AD23: 0-0-0 | AE23: 0-0-0 | AG23: 0/1 | AH23: 0/0 | AI23: 0/0 | AJ23: 0/0 | AL23: =SUM(AL4:AL22) -> 0 | AM23: 0 | AN23: 0 | AO23: 0 | AP23: 0 | AQ23: 0
AG24: 0.0 % | AH24: 0.0 % | AI24: 0.0 % | AJ24: 0.0 %
B25: Pesispörssi | D25: 0.3
B27: URA SUPERISSA | E27: OTT | F27: KUN | G27: LÖI | H27: TOI | I27: KL | K27: ka/L | L27: ka/T | M27: ka/KL | N27: KL-% | P27: ENSIMMÄISET RUNKOSARJASSA | AG27: ENSIMMÄISET PUDOTUSPELEISSÄ | AL27: YLEISÖ
B28: Runkosarja | E28: 1 | F28: 0 | G28: 0 | H28: 0 | I28: 0 | K28: 0.00 | L28: 0.00 | M28: 0.00 | N28: 0.0 % | O28: =PRODUCT(O23) -> 0 | P28: Ottelu | R28: 13.07. 2002 PuPe - UPV 1-2 (3-2, 0-1, 1-1, 0-1) | Z28: 1. ottelu | AC28: 17 v 11 kk 24 pv | AG28: Ottelu | AH28: 1. 22.08. 2002 Tahko - UPV 2-0 | AL28: 1385 | AN28: 18 v 3 kk 29 pv
B29: Ylempi loppusarja | E29: 2 | F29: 0 | G29: 0 | H29: 0 | I29: 1 | K29: 0.00 | L29: 0.00 | M29: 0.50 | N29: 25.0 % | P29: Lyöty | AG29: Lyöty
B30: Alempi loppusarja | P30: Tuotu | AG30: Tuotu
B31: KAIKKI | E31: 3 | F31: 0 | G31: 0 | H31: 0 | I31: 1 | K31: 0.00 | L31: 0.00 | M31: 0.33 | N31: 14.3 % | O31: =SUM(O28:O30) -> 0 | P31: Kunnari | AG31: Kunnari
B33: Seurat | D33: UPV = Ulvilan Pesä-Veikot (1957), kasvattajaseura | M33: KöLa = Köyliön Lallit (1946) | S33: LaJy = Laitilan Jyske (1911) | Z33: PomPy = Pomarkun Pyry (1945) | AG33: EuVe = Eurajoen Veikot (1932)

Sheet MYP, MSS
B1: Keijo Koivisto | E1: 24.4.1984 Ulvila
B2: YKKÖSPESIS | E2: Runkosarja | L2: Runkosarja TOP-10 | Q2: Jatkosarjat | X2: SUOMENSARJA | AA2: Runkosarja | AH2: Runkosarja TOP-10 | AM2: Jatkosarjat
B3: Vuosi | C3: Sija | D3: Seura | E3: OTT | F3: KUN | G3: LÖI | H3: TOI | I3: KL | J3: KL-% | L3: LÖI | M3: TOI | N3: L+T | O3: KL | Q3: OTT | R3: KUN | S3: LÖI | T3: TOI | U3: KL | V3: KL-% | X3: Vuosi | Y3: Sija | Z3: Seura | AA3: OTT | AB3: KUN | AC3: LÖI | AD3: TOI | AE3: KL | AF3: KL-% | AH3: LÖI | AI3: TOI | AJ3: L+T | AK3: KL | AM3: OTT | AN3: KUN | AO3: LÖI | AP3: TOI | AQ3: KL | AR3: KL-%
B4: 2003 | C4: 15. | D4: KöLa | E4: 2 | F4: 0 | G4: 0 | H4: 0 | I4: 0 | J4: 0.0 % | K4: 7
B5: 2004 | C5: 11. | D5: UPV | E5: 13 | F5: 1 | G5: 7 | H5: 2 | I5: 20 | J5: 28.6 % | K5: 70 | Q5: 2 | R5: 0 | S5: 2 | T5: 0 | U5: 3 | V5: 21.4 % | W5: 14
B6: 2005 | C6: 6. | D6: UPV | E6: 13 | F6: 0 | G6: 4 | H6: 2 | I6: 18 | J6: 32.1 % | K6: 56 | X6: 2005 | Y6: 5. | Z6: LaJy | AA6: 2 | AB6: 0 | AC6: 0 | AD6: 0 | AE6: 6 | AF6: 66.7 % | AG6: 9
X8: 2007 | Y8: 6. | Z8: UPV 2 | AA8: 13 | AB8: 2 | AC8: 23 | AD8: 20 | AE8: 69 | AF8: 64.5 % | AG8: 107 | AJ8: 10.
X9: 2008 | Y9: 6. | Z9: UPV 2 | AA9: 7 | AB9: 0 | AC9: 6 | AD9: 3 | AE9: 24 | AF9: 50.0 % | AG9: 48
X11: 2014 | Y11: 10. | Z11: PomPy | AA11: 9 | AB11: 0 | AC11: 13 | AD11: 5 | AE11: 34 | AF11: 58.6 % | AG11: 58 | AM11: 1 | AN11: 0 | AO11: 0 | AP11: 0 | AQ11: 4 | AR11: 44.4 % | AS11: 9
X12: 2015 | Y12: 9. | Z12: PomPy | AA12: 12 | AB12: 0 | AC12: 8 | AD12: 4 | AE12: 40 | AF12: 51.3 % | AG12: 78
X13: 2016 | Y13: 9. | Z13: PomPy | AA13: 14 | AB13: 0 | AC13: 7 | AD13: 6 | AE13: 54 | AF13: 52.9 % | AG13: 102
X14: 2017 | Y14: 5. | Z14: EuVe | AA14: 16 | AB14: 1 | AC14: 16 | AD14: 3 | AE14: 55 | AF14: 50.9 % | AG14: 108
X15: 2020 | Y15: 7. | Z15: PomPy | AA15: 10 | AB15: 0 | AC15: 8 | AD15: 4 | AE15: 30 | AF15: 47.6 % | AG15: 63
X16: 2021 | Y16: 8. | Z16: PomPy | AA16: 13 | AB16: 0 | AC16: 7 | AD16: 7 | AE16: 51 | AF16: 60.7 % | AG16: 84
X17: 2022 | Y17: 4. | Z17: UPV | AA17: 15 | AB17: 0 | AC17: 9 | AD17: 22 | AE17: 67 | AF17: 70.5 % | AG17: 95 | AM17: 3 | AN17: 0 | AO17: 2 | AP17: 1 | AQ17: 14 | AR17: 56.0 % | AS17: 25
X18: 2023 | Y18: 6. | Z18: UPV | AA18: 15 | AB18: 0 | AC18: 6 | AD18: 9 | AE18: 51 | AF18: 61.4 % | AG18: 83
B19: YHTEENSÄ | E19: =SUM(E4:E18) -> 28 | F19: =SUM(F4:F18) -> 1 | G19: =SUM(G4:G18) -> 11 | H19: =SUM(H4:H18) -> 4 | I19: =SUM(I4:I18) -> 38 | J19: =PRODUCT(I19/K19) -> 28.6 % | K19: =SUM(K4:K18) -> 133 | Q19: =SUM(Q4:Q18) -> 2 | R19: =SUM(R4:R18) -> 0 | S19: =SUM(S4:S18) -> 2 | T19: =SUM(T4:T18) -> 0 | U19: =SUM(U4:U18) -> 3 | V19: =PRODUCT(U19/W19) -> 21.4 % | W19: =SUM(W4:W18) -> 14 | X19: YHTEENSÄ | AA19: =SUM(AA4:AA18) -> 126 | AB19: =SUM(AB4:AB18) -> 3 | AC19: =SUM(AC4:AC18) -> 103 | AD19: =SUM(AD4:AD18) -> 83 | AE19: =SUM(AE4:AE18) -> 481 | AF19: =PRODUCT(AE19/AG19) -> 57.6 % | AG19: =SUM(AG4:AG18) -> 835 | AM19: =SUM(AM4:AM18) -> 4 | AN19: =SUM(AN4:AN18) -> 0 | AO19: =SUM(AO4:AO18) -> 2 | AP19: =SUM(AP4:AP18) -> 1 | AQ19: =SUM(AQ4:AQ18) -> 18 | AR19: =PRODUCT(AQ19/AS19) -> 52.9 % | AS19: =SUM(AS4:AS18) -> 34
B21: KAIKKI OTTELUT | E21: OTT | F21: KUN | G21: LÖI | H21: TOI | I21: KL | J21: KL-% | L21: ka/L | M21: ka/T | N21: ka/l+t | O21: ka/kl | R21: Seurat | T21: UPV = Ulvilan Pesä-Veikot (1957), kasvattajaseura
B22: SUPERPESIS | E22: 3 | F22: 0 | G22: 0 | H22: 0 | I22: 1 | J22: 14.3 % | K22: =PRODUCT(I22/J22) -> 6.993006993 | L22: =PRODUCT((F22+G22)/E22) -> 0.00 | M22: =PRODUCT(H22/E22) -> 0.00 | N22: =PRODUCT((F22+G22+H22)/E22) -> 0.00 | O22: =PRODUCT(I22/E22) -> 0.33 | T22: KöLa = Köyliön Lallit (1946)
B23: YKKÖSPESIS | E23: =PRODUCT(E19+Q19) -> 30 | F23: =PRODUCT(F19+R19) -> 1 | G23: =PRODUCT(G19+S19) -> 13 | H23: =PRODUCT(H19+T19) -> 4 | I23: =PRODUCT(I19+U19) -> 41 | J23: =PRODUCT(I23/K23) -> 27.9 % | K23: =PRODUCT(K19+W19) -> 147 | L23: 0.47 | M23: 0.13 | N23: 0.60 | O23: 1.37 | T23: LaJy = Laitilan Jyske (1911)
B24: SUOMENSARJA | E24: =PRODUCT(AA19+AM19) -> 130 | F24: =PRODUCT(AB19+AN19) -> 3 | G24: =PRODUCT(AC19+AO19) -> 105 | H24: =PRODUCT(AD19+AP19) -> 84 | I24: =PRODUCT(AE19+AQ19) -> 499 | J24: =PRODUCT(I24/K24) -> 57.4 % | K24: =PRODUCT(AG19+AS19) -> 869 | L24: =PRODUCT((F24+G24)/E24) -> 0.83 | M24: =PRODUCT(H24/E24) -> 0.65 | N24: =PRODUCT((F24+G24+H24)/E24) -> 1.48 | O24: =PRODUCT(I24/E24) -> 3.84 | T24: PomPy = Pomarkun Pyry (1945)
B25: YHTEENSÄ | E25: =SUM(E22:E24) -> 163 | F25: =SUM(F22:F24) -> 4 | G25: 118 | H25: 88 | I25: 541 | J25: =PRODUCT(I25/K25) -> 52.9 % | K25: =SUM(K22:K24) -> 1022.993007 | L25: =PRODUCT((F25+G25)/E25) -> 0.75 | M25: =PRODUCT(H25/E25) -> 0.54 | N25: =PRODUCT((F25+G25+H25)/E25) -> 1.29 | O25: =PRODUCT(I25/E25) -> 3.32 | T25: EuVe = Eurajoen Veikot (1932)
